bitfinex-derivatives/quotes_SOLF0:USTF0_20240911
["timestamp","ask_amount","ask_price","bid_price","bid_amount"]
[1726035084641,1.2,131.99,131.97,6.15839795]
[1726035084842,1.2,131.99,131.96,14.34171359]
[1726035085049,1.2,131.99,131.97,6.15843257]
[1726035085348,1.2,131.99,131.96,14.34171359]
[1726035085545,1.2,131.99,131.97,6.15842732]
[1726035085751,4.9881,131.99,131.96,14.34171359]
[1726035086055,4.9881,131.99,131.97,6.15923585]
[1726035086351,10.49,131.98,131.84,3.86951754]
[1726035086551,13.3062,131.98,131.92,10.49]
[1726035086751,3.7891,131.95,131.93,6.16234285]
[1726035086949,10.49,131.96,131.91,3.83659239]
[1726035087250,10.49,131.96,131.92,6.16417652]
[1726035087440,10.49,131.96,131.91,3.80210701]
[1726035087638,10.49,131.96,131.92,6.16568681]
[1726035087845,10.49,131.96,131.91,3.72517811]
[1726035088049,10.49,131.96,131.92,6.16580579]
[1726035088248,11.47,131.96,131.91,3.8240867]
[1726035088757,11.47,131.96,131.89,10.49]
[1726035089055,11.47,131.96,131.9,6.16531037]
[1726035089252,3.7895,131.94,131.91,6.16531037]
[1726035089551,3.7895,131.94,131.89,14.31825526]
[1726035090856,3.7895,131.94,131.9,6.16418894]
[1726035091055,3.7895,131.94,131.9,6.16420131]
[1726035091255,3.7895,131.94,131.89,14.31825526]
[1726035091556,3.7895,131.94,131.9,6.16474507]
[1726035091761,3.7895,131.94,131.89,14.31825526]
[1726035091962,3.7895,131.94,131.9,6.1647354]
[1726035092260,3.7895,131.94,131.89,14.31825526]
[1726035092462,3.7895,131.94,131.9,6.16442014]
[1726035093851,3.7899,131.93,131.9,6.16442014]
[1726035094256,10.49,131.95,131.9,6.16442014]
[1726035094452,10.49,131.95,131.9,6.16447921]
[1726035094962,10.49,131.95,131.89,14.31825526]
[1726035095757,3.7897,131.93,131.89,14.31825526]
[1726035097368,3.7897,131.93,131.89,20.48273447]
[1726035097574,4.0097,131.93,131.89,14.31825526]
[1726035098756,4.0097,131.93,131.89,3.82825526]
[1726035098962,0.22,131.93,131.89,10.49]
[1726035099265,0.22,131.93,131.89,14.32148878]
[1726035099972,0.22,131.93,131.92,10.49]
[1726035101865,0.98,131.96,131.92,16.65137751]
[1726035102067,0.98,131.96,131.95,10.49]
[1726035102568,4.1531,132.02,131.98,10.49]
[1726035103162,4.1531,132.02,131.98,14.20722988]
[1726035103467,3.7875,132.01,131.98,14.20722988]
[1726035106969,3.7878,132.0,131.96,10.49]
[1726035107763,3.7878,132.0,131.97,3.87141991]
[1726035109172,3.7875,132.01,131.97,10.49]
[1726035109872,3.7875,132.01,131.98,3.8267123]
[1726035114170,3.7876,132.0,131.98,3.8267123]
[1726035116481,3.7875,132.01,131.97,10.49]
[1726035116980,35.45306436,132.1,131.99,10.49]
[1726035117280,10.49,132.07,132.01,10.49]
[1726035117485,10.49,132.08,132.01,10.49]
[1726035117784,10.49,132.06,132.0,10.49]
[1726035117972,10.49,132.06,132.01,3.86119108]
[1726035118278,3.7866,132.04,132.01,3.86119108]
[1726035118483,10.49,132.06,132.01,3.86119108]
[1726035118680,3.7868,132.04,132.01,3.86119108]
[1726035119182,10.49,132.06,132.01,3.86119108]
[1726035120176,3.7869,132.03,132.01,3.86119108]
[1726035120476,10.49,132.04,131.97,10.49]
[1726035120677,3.7877,132.0,131.97,14.33979548]
[1726035121677,3.7879,131.99,131.97,14.33979548]
[1726035121878,14.6215,132.03,131.97,14.33979548]
[1726035122276,3.7875,132.01,131.97,14.33979548]
[1726035122583,14.6215,132.03,131.97,14.33979548]
[1726035122777,3.7875,132.01,131.97,14.33979548]
[1726035122973,4.1315,132.03,131.96,10.49]
[1726035122974,10.49,132.02,131.96,10.49]
[1726035123374,3.7878,132.0,131.96,14.21756114]
[1726035124182,3.7875,132.01,131.96,14.21756114]
[1726035125583,10.49,132.02,131.96,20.37147231]
[1726035125584,14.2772,132.02,131.96,20.37147231]
[1726035125783,10.49,132.02,131.96,14.21756114]
[1726035126179,4.1315,132.03,131.97,10.49]
[1726035126180,3.7875,132.01,131.97,10.49]
[1726035126789,4.1315,132.03,131.97,14.26945382]
[1726035126976,2.7911,132.03,132.0,10.49]
[1726035127182,10.49,132.07,132.01,10.49]
[1726035127387,1.2885,132.08,132.01,10.49]
[1726035127388,3.7861,132.06,132.01,10.49]
[1726035127586,3.7861,132.06,132.02,3.71165243]
[1726035128294,3.7858,132.07,132.01,10.49]
[1726035128679,3.7858,132.07,132.01,14.27475672]
[1726035129085,3.7858,132.07,132.03,10.49]
[1726035129383,4.1109,132.08,132.03,10.49]
[1726035129384,7.8964,132.08,132.03,10.49]
[1726035130491,3.7857,132.07,132.03,10.49]
[1726035131987,3.7859,132.06,132.03,10.49]
[1726035133287,4.1109,132.08,132.03,10.49]
[1726035133687,3.7859,132.07,132.03,10.49]
[1726035134588,3.786,132.06,132.03,10.49]
[1726035143595,3.7862,132.05,132.03,10.49]
[1726035147892,3.7861,132.06,132.03,10.49]
[1726035148492,3.78294456,132.13,132.04,10.49]
[1726035148702,10.49,132.11,132.04,10.49]
[1726035149098,3.7853,132.09,132.04,10.49]
[1726035149495,10.49,132.11,132.04,10.49]
[1726035150403,3.7851,132.09,132.04,10.49]
[1726035150598,3.7851,132.09,132.05,10.49]
[1726035153300,3.7846,132.11,132.05,10.49]
[1726035153606,4.0475,132.12,132.07,10.49]
[1726035154197,3.7849,132.1,132.07,10.49]
[1726035154400,14.5375,132.12,132.06,3.75454407]
[1726035154607,14.5375,132.12,132.05,10.49]
[1726035154994,3.7852,132.09,132.05,10.49]
[1726035155203,3.7852,132.09,132.06,3.75425975]
[1726035157104,14.5375,132.12,132.06,3.75425975]
[1726035157903,3.7852,132.09,132.06,3.75425975]
[1726035160610,3.7854,132.08,132.06,3.75425975]
[1726035161008,3.7854,132.08,132.06,10.49]
[1726035161313,3.7854,132.08,132.06,14.22920945]
[1726035169810,3.7856,132.07,132.06,3.73920945]
[1726035170007,14.5375,132.12,131.92,3.71185157]
[1726035170210,14.5375,132.12,132.05,10.49]
[1726035170408,14.5375,132.12,132.06,3.71876419]
[1726035170911,3.7854,132.08,132.06,3.71876419]
[1726035171213,10.49,132.11,132.05,10.49]
[1726035171409,3.7855,132.08,132.05,10.49]
[1726035171618,3.7855,132.08,132.06,3.81682568]
[1726035173813,3.7852,132.09,132.06,3.81682568]
[1726035174319,3.7852,132.09,132.06,14.30682568]
[1726035174818,3.7849,132.1,132.06,14.30682568]
[1726035176515,3.7851,132.09,132.06,14.30682568]
[1726035178013,27.88346436,132.16,132.08,10.49]
[1726035178317,3.69642586,132.16,132.1,10.49]
[1726035178617,3.81190368,132.16,132.1,10.49]
[1726035178820,10.49,132.15,132.08,14.19967741]
[1726035179115,13.0753,132.14,132.08,10.49]
[1726035179322,2.5853,132.14,132.08,14.31477661]
[1726035179520,2.5853,132.14,132.08,18.09997661]
[1726035179724,2.5853,132.14,132.1,10.49]
[1726035184411,2.5853,132.14,132.13,10.49]
[1726035184622,2.5853,132.14,132.11,10.49]
[1726035184823,2.5853,132.14,132.09,3.7851]
[1726035185022,2.5853,132.14,132.11,10.49]
[1726035187113,2.5853,132.14,132.08,7.60997661]
[1726035187421,2.5853,132.14,132.08,10.49]
[1726035187618,13.0753,132.14,132.08,10.49]
[1726035189325,2.5853,132.14,132.08,14.2753]
[1726035189525,13.0753,132.14,132.08,14.2753]
[1726035192225,13.0753,132.14,132.08,10.49]
[1726035192931,10.49,132.13,132.08,10.49]
[1726035193124,10.49,132.12,132.04,3.82172225]
[1726035193324,10.49,132.12,132.06,10.49]
[1726035194524,10.49,132.12,132.0,6.13353094]
[1726035194729,10.49,132.12,132.05,10.49]
[1726035195121,10.49,132.1,132.04,3.7863]
[1726035195328,2.7945,132.09,132.04,14.2763]
[1726035196032,2.7945,132.09,132.05,14.2761]
[1726035197230,2.7945,132.09,132.05,10.49]
[1726035200342,1.3491,132.15,132.07,10.49]
[1726035200544,13.2098,132.14,132.07,10.49]
[1726035201744,10.49,132.13,132.07,10.49]
[1726035202050,10.49,132.13,132.07,14.2756]
[1726035202250,2.7198,132.14,132.07,14.2756]
[1726035202448,10.49,132.13,132.07,14.2756]
[1726035203653,2.7198,132.14,132.07,14.2756]
[1726035204554,10.49,132.13,132.07,14.2756]
[1726035204949,2.7198,132.14,132.07,14.2756]
[1726035205249,10.49,132.13,132.07,14.2756]
[1726035205451,2.7198,132.14,132.07,14.2756]
[1726035205652,10.49,132.13,132.07,14.2756]
[1726035205957,13.2098,132.14,132.07,14.2756]
[1726035206550,13.2098,132.14,132.08,3.7853]
[1726035206858,10.49,132.12,132.06,10.49]
[1726035207158,10.49,132.12,132.06,14.2758]
[1726035207352,10.49,132.12,132.06,10.49]
[1726035207856,10.49,132.12,132.07,3.7854]
[1726035208358,10.49,132.12,132.04,3.73467117]
[1726035208558,10.49,132.12,132.06,10.49]
[1726035208753,10.49,132.12,132.07,3.79542701]
[1726035209360,2.7198,132.14,132.07,3.79542701]
[1726035209556,10.49,132.13,132.07,3.79542701]
[1726035211357,2.7198,132.14,132.07,3.79542701]
[1726035211557,10.49,132.13,132.07,3.79542701]
[1726035211759,2.7198,132.14,132.07,3.79542701]
[1726035211959,10.49,132.13,132.07,3.79542701]
[1726035214665,2.7198,132.14,132.07,18.07092701]
[1726035214862,10.49,132.13,132.07,18.07092701]
[1726035215260,2.7198,132.14,132.07,14.28542701]
[1726035215458,13.2098,132.14,132.07,14.28542701]
[1726035215766,13.2098,132.14,132.08,3.7853]
[1726035215963,13.2098,132.14,132.08,14.2753]
[1726035216154,13.2098,132.14,132.08,3.7853]
[1726035216358,13.2098,132.14,132.08,14.2753]
[1726035216558,13.2098,132.14,132.08,10.49]
[1726035220469,13.2098,132.14,132.08,14.2753]
[1726035225571,2.7198,132.14,132.08,14.2753]
[1726035225767,13.2098,132.14,132.08,14.2753]
[1726035226370,2.7198,132.14,132.09,3.785]
[1726035226581,2.7198,132.14,132.08,10.49]
[1726035227676,2.7198,132.14,132.09,3.7849]
[1726035228773,2.7198,132.14,132.09,14.2749]
[1726035230265,2.7198,132.14,132.09,10.49]
[1726035231279,2.7198,132.14,132.09,14.2749]
[1726035233379,2.7198,132.14,132.09,3.7849]
[1726035233580,2.7198,132.14,132.09,14.2749]
[1726035238280,10.49,132.13,132.07,3.79542701]
[1726035238480,2.7198,132.14,132.06,10.49]
[1726035238481,10.49,132.12,132.06,10.49]
[1726035238679,10.49,132.12,132.07,3.7284287]
[1726035239181,10.49,132.12,132.06,14.2758]
[1726035239182,14.26384918,132.11,131.93,7.5788]
[1726035239396,10.49,132.1,132.04,10.49]
[1726035239583,10.49,132.1,132.03,3.7481072]
[1726035239782,10.49,132.1,132.04,6.1304954]
[1726035239982,10.49,132.1,132.03,14.28126287]
[1726035240177,10.49,132.1,132.04,6.13056703]
[1726035240381,3.74772864,132.11,132.03,14.28126287]
[1726035240586,10.49,132.1,132.04,6.13200722]
[1726035240786,2.7198,132.14,132.05,10.49]
[1726035240988,10.49,132.11,132.05,16.62197584]
[1726035241284,10.49,132.11,132.05,14.34410357]
[1726035241586,10.49,132.12,132.06,10.49]
[1726035242286,10.49,132.12,132.06,14.32916401]
[1726035243275,2.7198,132.14,132.07,3.7856]
[1726035243478,13.2098,132.14,132.08,10.49]
[1726035244793,13.2098,132.14,132.08,14.2752]
[1726035245592,13.2098,132.14,132.08,10.49]
[1726035245889,10.49,132.12,132.06,7.62496401]
[1726035246087,10.49,132.12,132.07,9.91370293]
[1726035246286,10.49,132.12,132.07,3.7856]
[1726035248181,10.49,132.12,132.06,18.11496401]
[1726035248386,10.49,132.12,132.07,6.12736153]
[1726035248688,10.49,132.12,132.06,18.11496401]
[1726035248889,10.49,132.12,132.07,6.12695851]
[1726035249091,10.49,132.12,132.06,18.11496401]
[1726035249390,10.49,132.12,132.07,6.12667602]
[1726035249592,10.49,132.12,132.06,18.11496401]
[1726035250189,10.49,132.12,132.07,6.12633898]
[1726035250391,10.49,132.12,132.06,18.11496401]
[1726035250593,10.49,132.12,132.07,6.12625635]
[1726035250790,10.49,132.12,132.06,18.11496401]
[1726035251095,10.49,132.12,132.07,6.12621592]
[1726035251296,10.49,132.12,132.06,18.11496401]
[1726035251496,10.49,132.12,132.07,6.12631832]
[1726035251795,10.49,132.12,132.06,18.11496401]
[1726035252097,10.49,132.12,132.07,6.126689]
[1726035252295,10.49,132.12,132.06,18.11496401]
[1726035252496,10.49,132.12,132.07,6.12699784]
[1726035252797,10.49,132.12,132.06,18.11496401]
[1726035252995,10.49,132.12,132.07,6.12726184]
[1726035253299,10.49,132.12,132.06,18.11496401]
[1726035253500,10.49,132.11,132.07,6.12761275]
[1726035253800,10.49,132.11,132.04,10.49]
[1726035254097,10.49,132.11,132.05,9.88813488]
[1726035254298,10.49,132.11,132.06,6.12942539]
[1726035254492,10.49,132.11,132.05,3.75870949]
[1726035254694,10.49,132.11,132.06,6.12791411]
[1726035254895,10.49,132.11,132.05,3.75870949]
[1726035255096,10.49,132.11,132.06,6.12786929]
[1726035255398,10.49,132.11,132.05,3.75870949]
[1726035255598,10.49,132.11,132.06,6.1278597]
[1726035255895,10.49,132.11,132.05,3.75870949]
[1726035256201,10.49,132.11,132.06,6.12881145]
[1726035256505,10.49,132.11,132.05,14.24870949]
[1726035256801,10.49,132.11,132.06,6.12894734]
[1726035256998,10.49,132.11,132.05,14.24870949]
[1726035257196,10.49,132.11,132.06,6.12902713]
[1726035257399,10.49,132.11,132.05,3.75870949]
[1726035257595,10.49,132.11,132.06,6.12887727]
[1726035257790,10.49,132.11,132.05,3.79457772]
[1726035257995,3.7853,132.09,132.06,6.12873945]
[1726035258201,3.7853,132.09,132.05,3.79457772]
[1726035258403,3.7853,132.09,132.06,6.12743343]
[1726035258603,3.785,132.1,132.05,3.79457772]
[1726035258795,3.785,132.1,132.04,10.49]
[1726035258796,10.49,132.11,132.06,6.12661802]
[1726035258996,10.49,132.11,132.06,3.69945479]
[1726035259200,10.49,132.11,132.04,10.49]
[1726035259410,10.49,132.11,132.05,6.12709559]
[1726035259702,10.49,132.11,132.06,9.8655478]
[1726035259897,10.49,132.11,132.04,10.49]
[1726035260097,3.7852,132.09,132.05,6.12783366]
[1726035260297,3.7852,132.09,132.06,6.12783366]
[1726035260497,3.7852,132.09,132.04,14.30682568]
[1726035260805,3.7852,132.09,132.05,6.1280122]
[1726035261004,3.7852,132.09,132.04,14.30682568]
[1726035261005,3.7852,132.09,132.06,6.1280122]
[1726035261192,3.7852,132.09,132.04,14.30682568]
[1726035261397,3.7852,132.09,132.05,6.12788733]
[1726035261594,3.7852,132.09,132.06,6.12788733]
[1726035261798,3.7852,132.09,132.04,14.30682568]
[1726035262001,3.7852,132.09,132.05,6.12845365]
[1726035262205,3.7852,132.09,132.06,6.12845365]
[1726035262402,3.7855,132.08,132.04,14.30682568]
[1726035263004,3.7855,132.08,132.05,6.12805941]
[1726035263209,3.7855,132.08,132.04,14.30682568]
[1726035263409,3.7855,132.08,132.05,6.12795786]
[1726035263607,3.7855,132.08,132.04,3.81682568]
[1726035263905,3.7859,132.06,132.05,6.12802255]
[1726035264109,10.49,132.09,132.05,6.12802255]
[1726035264304,3.7858,132.07,132.03,3.86035904]
[1726035264510,3.7858,132.07,132.04,6.12810881]
[1726035264809,3.7858,132.07,132.05,6.12810881]
[1726035265004,3.7858,132.07,132.03,3.86035904]
[1726035265201,3.7858,132.07,132.04,6.12847485]
[1726035265407,3.7858,132.07,132.05,6.12847485]
[1726035265706,3.7858,132.07,132.03,10.49]
[1726035265903,3.7858,132.07,132.04,6.12790856]
[1726035266104,3.7858,132.07,132.05,6.12790856]
[1726035266408,3.7858,132.07,132.03,14.26688579]
[1726035266609,3.7858,132.07,132.04,6.12746901]
[1726035266808,3.7858,132.07,132.05,6.12746901]
[1726035267010,10.49,132.09,132.03,3.77688579]
[1726035267213,10.49,132.09,132.04,6.12810077]
[1726035267413,10.49,132.09,132.03,3.79468342]
[1726035267613,10.49,132.09,132.04,6.12879549]
[1726035267817,10.49,132.09,132.03,3.79468342]
[1726035268115,10.49,132.09,132.04,6.12907985]
[1726035268307,3.7861,132.06,132.05,6.12907985]
[1726035268507,3.7861,132.06,132.03,3.79468342]
[1726035268709,3.7861,132.06,132.04,6.129349]
[1726035268914,3.7861,132.06,132.03,3.79468342]
[1726035269312,3.7861,132.06,132.04,6.12940494]
[1726035269509,3.7861,132.06,132.03,3.79468342]
[1726035269710,3.7861,132.06,132.04,6.12949541]
[1726035269910,3.7861,132.06,132.05,6.12944803]
[1726035270217,3.7861,132.06,132.03,3.79468342]
[1726035270419,3.7861,132.06,132.04,6.12946336]
[1726035270610,3.7861,132.06,132.03,3.79468342]
[1726035270810,3.7861,132.06,132.04,6.12951074]
[1726035271011,3.7861,132.06,132.03,3.79468342]
[1726035271213,3.7861,132.06,132.04,6.1294555]
[1726035271511,3.7861,132.06,132.03,3.79468342]
[1726035271712,3.7861,132.06,132.04,6.12787629]
[1726035271915,3.7861,132.06,132.03,3.79468342]
[1726035272114,3.7861,132.06,132.04,6.12821339]
[1726035272314,3.7861,132.06,132.03,3.79468342]
[1726035272511,3.7861,132.06,132.04,6.12832499]
[1726035272917,3.7861,132.06,132.03,3.79468342]
[1726035273118,3.7861,132.06,132.04,6.12830644]
[1726035273319,3.7861,132.06,132.03,3.79468342]
[1726035273623,3.7858,132.07,132.04,6.12825905]
[1726035273927,3.786,132.06,132.03,3.79468342]
[1726035274121,3.786,132.06,132.04,6.12826222]
[1726035274320,3.786,132.06,132.03,3.79468342]
[1726035274523,3.786,132.06,132.04,6.1283688]
[1726035274721,3.786,132.06,132.03,3.79468342]
[1726035274919,3.786,132.06,132.04,6.12833361]
[1726035275118,3.786,132.06,132.03,3.79468342]
[1726035275417,3.786,132.06,132.04,6.12833361]
[1726035275616,3.786,132.06,132.03,3.79468342]
[1726035276020,3.786,132.06,132.04,6.1282902]
[1726035276323,3.786,132.06,132.03,3.79468342]
[1726035276525,3.7858,132.07,132.04,6.12829021]
[1726035276726,3.7858,132.07,132.03,3.79468342]
[1726035276916,3.7858,132.07,132.04,6.13523386]
[1726035277120,3.7858,132.07,132.03,3.79468342]
[1726035277322,3.7858,132.07,132.04,6.13524375]
[1726035277525,3.7858,132.07,132.03,3.79468342]
[1726035277823,3.7858,132.07,132.04,6.13482167]
[1726035278023,3.7858,132.07,132.05,6.13482167]
[1726035278322,3.7858,132.07,132.02,10.49]
[1726035278525,3.7858,132.07,132.03,6.13656372]
[1726035278718,3.7858,132.07,132.04,6.13656372]
[1726035278918,3.7858,132.07,132.05,6.13656372]
[1726035279119,3.7858,132.07,132.02,14.31345887]
[1726035279320,3.7858,132.07,132.03,6.13749963]
[1726035279516,3.7858,132.07,132.04,6.13749963]
[1726035279717,3.7858,132.07,132.02,14.31345887]
[1726035279921,3.7858,132.07,132.03,6.13635575]
[1726035280124,3.7859,132.06,132.04,6.13635575]
[1726035280418,10.49,132.09,132.02,14.31345887]
[1726035280722,3.7858,132.07,132.03,6.13720906]
[1726035281019,3.7858,132.07,132.04,6.13720906]
[1726035281224,3.7858,132.07,132.02,14.31345887]
[1726035281428,3.7858,132.07,132.03,6.13793804]
[1726035281626,3.7858,132.07,132.04,6.13793804]
[1726035281817,3.7855,132.08,132.02,14.31345887]
[1726035282219,3.7855,132.08,132.03,6.1382168]
[1726035282420,3.7855,132.08,132.04,6.1382168]
[1726035282619,3.7855,132.08,132.02,14.31345887]
[1726035282816,3.7855,132.08,132.05,6.13906379]
[1726035283022,3.7855,132.08,132.02,14.31345887]
[1726035283328,3.7855,132.08,132.03,6.13945683]
[1726035283518,3.7858,132.07,132.04,6.13945683]
[1726035283721,3.7858,132.07,132.02,14.31345887]
[1726035283927,3.7858,132.07,132.03,6.14191525]
[1726035284126,3.7858,132.07,132.04,6.14191525]
[1726035284332,3.7858,132.07,132.02,14.31345887]
[1726035284532,3.7858,132.07,132.03,6.14200827]
[1726035284734,3.7858,132.07,132.04,6.14200827]
[1726035284928,3.7858,132.07,132.02,14.31345887]
[1726035285129,10.49,132.09,132.03,6.14210757]
[1726035285326,10.49,132.09,132.04,6.14210757]
[1726035285531,10.49,132.09,132.02,14.31345887]
[1726035285733,3.7858,132.07,132.03,6.14187791]
[1726035285934,3.7858,132.07,132.04,6.14187791]
[1726035286136,3.7858,132.07,132.02,14.31345887]
[1726035286331,3.7858,132.07,132.03,6.14198056]
[1726035286536,3.7858,132.07,132.04,6.14198056]
[1726035286835,3.7858,132.07,132.02,14.31345887]
[1726035287026,3.7858,132.07,132.03,6.14226394]
[1726035287230,3.7858,132.07,132.04,6.14226394]
[1726035287430,3.7858,132.07,132.02,14.31345887]
[1726035287629,3.786,132.06,132.03,6.14396162]
[1726035287831,3.786,132.06,132.04,6.14396162]
[1726035288035,3.786,132.06,132.02,14.31345887]
[1726035288237,3.786,132.06,132.03,6.14552276]
[1726035288429,3.786,132.06,132.04,6.14552276]
[1726035288625,3.786,132.06,132.02,14.31345887]
[1726035288830,3.786,132.06,132.03,6.14521331]
[1726035289033,3.786,132.06,132.04,6.14521331]
[1726035289337,3.786,132.06,132.02,14.31345887]
[1726035289935,3.786,132.06,132.03,6.14442269]
[1726035290137,3.786,132.06,132.04,6.14442269]
[1726035290343,3.786,132.06,132.02,14.31345887]
[1726035290636,3.786,132.06,132.03,6.14498725]
[1726035290837,3.786,132.06,132.04,6.14498725]
[1726035291039,3.786,132.06,132.02,14.31345887]
[1726035291337,3.786,132.06,132.03,6.14018861]
[1726035291634,10.49,132.08,132.02,14.31345887]
[1726035291837,10.49,132.08,132.03,6.14208782]
[1726035292038,3.7862,132.06,132.02,14.31345887]
[1726035292227,3.7862,132.06,132.03,6.14214608]
[1726035292431,3.7862,132.06,132.02,14.31345887]
[1726035292634,3.7863,132.05,132.02,14.31345887]
[1726035293535,3.7861,132.06,132.02,14.31345887]
[1726035293936,3.7861,132.06,132.03,6.14308912]
[1726035294232,3.7861,132.06,132.02,14.31345887]
[1726035294427,3.7861,132.06,132.03,6.1442239]
[1726035294630,3.7862,132.05,132.02,14.31345887]
[1726035294832,10.49,132.09,132.02,14.31345887]
[1726035295139,10.49,132.09,132.03,6.14478564]
[1726035295332,3.7862,132.05,132.02,14.31345887]
[1726035295739,3.7862,132.05,132.02,10.49]
[1726035298835,3.7861,132.06,132.02,10.49]
[1726035300238,3.7862,132.05,132.02,10.49]
[1726035300542,10.49,132.08,132.02,10.49]
[1726035300833,10.49,132.08,132.01,3.82980708]
[1726035300834,3.7859,132.06,132.04,10.49]
[1726035302135,4.1236,132.1,132.05,10.49]
[1726035302337,76.35841422,132.18,132.05,10.49]
[1726035302338,426.66335507,132.14,132.08,10.49]
[1726035302538,437.15335507,132.14,132.08,10.49]
[1726035302839,3.7844,132.12,132.08,10.49]
[1726035303238,3.7844,132.12,132.09,3.76628495]
[1726035303639,3.784,132.13,132.09,3.76628495]
[1726035304243,3.7842,132.12,132.09,3.76628495]
[1726035305235,3.784,132.13,132.09,14.25628495]
[1726035306637,3.7844,132.12,131.95,3.70115968]
[1726035306942,3.7844,132.12,132.08,10.49]
[1726035307340,3.7844,132.12,132.09,10.49]
[1726035307534,3.7844,132.12,132.09,14.21359754]
[1726035309741,10.49,132.14,132.08,10.49]
[1726035310345,3.7847,132.11,132.08,10.49]
[1726035310547,10.49,132.12,131.95,3.7637217]
[1726035310740,10.49,132.12,132.06,10.49]
[1726035311046,10.49,132.11,131.92,3.83025439]
[1726035311247,2.6984,132.1,132.04,10.49]
[1726035311442,2.6984,132.1,132.04,3.69927316]
[1726035311746,10.49,132.08,131.89,18.98973617]
[1726035312039,10.49,132.08,132.02,10.49]
[1726035312442,3.7861,132.06,132.03,10.49]
[1726035312746,13.1884,132.1,132.03,10.49]
[1726035312940,3.7855,132.08,132.04,14.19268019]
[1726035313136,3.7855,132.08,132.04,10.49]
[1726035313341,2.6984,132.1,132.05,6.14153614]
[1726035313541,2.6984,132.1,132.04,10.49]
[1726035313845,2.6984,132.1,132.05,6.14031713]
[1726035314045,3.7852,132.09,132.04,10.49]
[1726035314235,3.7852,132.09,132.05,9.91209523]
[1726035314437,2.6984,132.1,132.05,3.77215721]
[1726035314650,3.7854,132.08,132.05,3.77215721]
[1726035314843,3.7854,132.08,132.04,10.49]
[1726035315149,3.7854,132.08,132.05,9.95746062]
[1726035315341,3.7854,132.08,132.05,3.81684294]
[1726035315545,3.7852,132.09,132.05,3.81684294]
[1726035315735,2.6984,132.1,132.06,10.49]
[1726035315940,338.0,132.15,132.07,10.49]
[1726035316242,10.49,132.13,132.07,14.20345985]
[1726035316546,3.7848,132.1,132.07,14.20345985]
[1726035319448,3.7848,132.1,131.9,3.81132646]
[1726035319449,10.49,132.1,132.04,10.49]
[1726035319649,10.49,132.1,132.05,6.13667287]
[1726035319851,3.7853,132.09,132.06,3.87323069]
[1726035320047,3.7853,132.09,132.04,10.49]
[1726035320241,3.7853,132.09,132.05,6.13428808]
[1726035320442,3.7853,132.09,132.06,3.87853078]
[1726035320642,3.7853,132.09,132.04,10.49]
[1726035320843,3.7853,132.09,132.05,6.13388225]
[1726035321043,3.7854,132.08,132.05,3.83385858]
[1726035321746,3.7856,132.07,131.92,3.71914947]
[1726035321941,10.49,132.1,132.03,10.49]
[1726035322141,14.6919,132.09,132.04,10.00260528]
[1726035322439,3.786,132.06,132.03,10.49]
[1726035322942,3.786,132.06,132.03,14.35170103]
[1726035323354,3.7857,132.07,132.03,14.35170103]
[1726035323644,14.6919,132.09,132.03,14.35170103]
[1726035324450,3.7859,132.07,132.03,14.35170103]
[1726035325245,14.6919,132.09,132.05,10.49]
[1726035325246,4.2019,132.09,132.05,10.49]
[1726035325452,4.2019,132.09,132.04,6.13947665]
[1726035325750,4.2019,132.09,132.03,10.49]
[1726035325946,3.7856,132.07,132.04,9.89772716]
[1726035326148,4.2019,132.09,132.05,10.49]
[1726035326347,2.8066,132.09,132.05,10.49]